bitfinex-derivatives/quotes_BTCF0:USTF0_20250713
["timestamp","ask_amount","ask_price","bid_price","bid_amount"]
[1752372328187,0.52172129,117600.0,117590.0,0.2026045]
[1752372328487,0.58672061,117600.0,117590.0,0.78477021]
[1752372329288,0.52548243,117600.0,117590.0,0.78477021]
[1752372329587,0.52848243,117600.0,117590.0,0.78477021]
[1752372330287,0.52948243,117600.0,117590.0,0.78477021]
[1752372331390,0.52648243,117600.0,117590.0,0.78477021]
[1752372331589,0.52948243,117600.0,117590.0,0.78477021]
[1752372336295,0.07837932,117600.0,117590.0,0.80266743]
[1752372336497,0.02337932,117600.0,117590.0,0.80266743]
[1752372336695,0.02337932,117600.0,117590.0,1.24576314]
[1752372337395,0.02337932,117600.0,117590.0,1.09530743]
[1752372337695,0.02237932,117600.0,117590.0,1.09530743]
[1752372338296,0.01937932,117600.0,117590.0,1.09530743]
[1752372339395,0.01937932,117600.0,117590.0,1.09630743]
[1752372340796,0.18938932,117600.0,117590.0,1.09630743]
[1752372341092,0.01937932,117600.0,117590.0,1.09630743]
[1752372343999,0.21401932,117600.0,117590.0,1.09630743]
[1752372344700,0.36447503,117600.0,117590.0,1.09630743]
[1752372345097,0.19446503,117600.0,117590.0,1.09630743]
[1752372345698,0.04400932,117600.0,117590.0,1.09630743]
[1752372346002,0.21401932,117600.0,117590.0,1.09630743]
[1752372347205,0.39677503,117600.0,117590.0,1.09630743]
[1752372347403,0.44443503,117600.0,117590.0,1.09630743]
[1752372347707,1.30948892,117600.0,117590.0,0.23722172]
[1752372347906,1.30948892,117600.0,117590.0,0.18892172]
[1752372348106,1.30948892,117600.0,117590.0,0.01889722]
[1752372348500,1.39870645,117600.0,117590.0,0.001]
[1752372348699,1.47519612,117600.0,117590.0,0.001]
[1752372348900,1.64826812,117600.0,117590.0,0.001]
[1752372349407,1.42132274,117600.0,117590.0,0.001]
[1752372350004,0.2023245,117590.0,117580.0,0.4612389]
[1752372350205,1.01689962,117590.0,117580.0,0.4612389]
[1752372351095,0.86644391,117590.0,117580.0,0.4612389]
[1752372351502,0.86744391,117590.0,117580.0,0.4612389]
[1752372351699,0.86744391,117590.0,117580.0,0.1700389]
[1752372355602,0.86744391,117590.0,117570.0,0.32208268]
[1752372355814,0.86810032,117580.0,117570.0,0.37322907]
[1752372356005,0.90375969,117580.0,117570.0,0.37322907]
[1752372356908,0.75330398,117580.0,117570.0,0.37322907]
[1752372357206,0.75330398,117580.0,117570.0,0.33071587]
[1752372358508,0.61119969,117580.0,117570.0,0.33071587]
[1752372359605,0.90471969,117580.0,117570.0,0.33071587]
[1752372359811,0.90571969,117580.0,117570.0,0.33071587]
[1752372361515,0.90471969,117580.0,117570.0,0.33071587]
[1752372361711,0.90571969,117580.0,117570.0,0.33071587]
[1752372362914,0.90571969,117580.0,117570.0,0.3127841]
[1752372363319,0.90571969,117580.0,117570.0,0.2702721]
[1752372363515,1.26651969,117580.0,117570.0,0.04513]
[1752372363718,0.1700534,117570.0,117560.0,0.29563635]
[1752372364017,0.44447843,117570.0,117560.0,0.33224745]
[1752372364211,0.44447843,117570.0,117560.0,0.28973055]
[1752372364813,0.44447843,117570.0,117560.0,0.29073055]
[1752372365915,0.44447843,117570.0,117560.0,0.44118626]
[1752372367117,0.29402272,117570.0,117560.0,0.44118626]
[1752372367316,0.44447843,117570.0,117560.0,0.44118626]
[1752372367812,0.44447843,117570.0,117560.0,0.44986429]
[1752372371823,0.44447843,117570.0,117560.0,0.44993639]
[1752372374523,0.44447843,117570.0,117560.0,0.12073575]
[1752372374730,0.86647281,117570.0,117560.0,0.29080355]
[1752372376126,0.86647281,117570.0,117560.0,0.29929729]
[1752372380938,0.86647281,117570.0,117560.0,0.449753]
[1752372381338,0.50567281,117570.0,117560.0,0.449753]
[1752372381535,0.44447843,117570.0,117560.0,0.449753]
[1752372382139,0.44447843,117570.0,117560.0,0.29929729]
[1752372382339,0.44447843,117570.0,117560.0,0.449753]
[1752372384240,0.50567281,117570.0,117560.0,0.449753]
[1752372399144,0.79799281,117570.0,117560.0,0.449753]
[1752372402343,0.3552171,117570.0,117560.0,0.449753]
[1752372402547,0.5998371,117570.0,117560.0,0.96100871]
[1752372402747,0.3075571,117570.0,117560.0,0.96100871]
[1752372402949,0.5998371,117570.0,117560.0,0.96100871]
[1752372405052,0.3075571,117570.0,117560.0,0.96100871]
[1752372405253,0.5998371,117570.0,117560.0,0.96100871]
[1752372406148,0.75029281,117570.0,117560.0,0.96100871]
[1752372406349,0.75029281,117570.0,117560.0,0.810553]
[1752372407550,0.2506271,117570.0,117560.0,0.96100871]
[1752372407755,0.18943272,117570.0,117560.0,0.96100871]
[1752372409248,0.2506271,117570.0,117560.0,0.96100871]
[1752372411255,0.2744571,117570.0,117560.0,0.96100871]
[1752372411456,0.42491281,117570.0,117560.0,0.810553]
[1752372412957,0.42491281,117570.0,117560.0,0.96100871]
[1752372413758,0.42491281,117570.0,117560.0,1.25320871]
[1752372413954,0.2744571,117570.0,117560.0,1.25320871]
[1752372416862,0.3060771,117570.0,117560.0,1.25320871]
[1752372418863,0.45653281,117570.0,117560.0,1.25320871]
[1752372419263,0.39533843,117570.0,117560.0,1.25320871]
[1752372421263,0.39533843,117570.0,117560.0,0.96100871]
[1752372421464,0.44347843,117570.0,117560.0,1.102673]
[1752372423263,0.44347843,117570.0,117560.0,0.810553]
[1752372423766,0.44347843,117570.0,117560.0,0.66009729]
[1752372423968,0.44347843,117570.0,117560.0,0.810553]
[1752372425471,0.44347843,117570.0,117560.0,0.449753]
[1752372425768,0.44347843,117570.0,117560.0,0.810553]
[1752372430066,0.44347843,117570.0,117560.0,0.29929729]
[1752372430272,0.50467281,117570.0,117560.0,0.29929729]
[1752372430573,0.50467281,117570.0,117560.0,0.449753]
[1752372430773,0.50467281,117570.0,117560.0,0.29929729]
[1752372430973,0.50467281,117570.0,117560.0,0.449753]
[1752372433174,0.50467281,117570.0,117560.0,0.29929729]
[1752372433368,0.50467281,117570.0,117560.0,0.449753]
[1752372434578,0.50467281,117570.0,117560.0,0.29929729]
[1752372434875,0.50467281,117570.0,117560.0,0.449753]
[1752372442489,0.48084281,117570.0,117560.0,0.426213]
[1752372444584,0.50437281,117570.0,117560.0,0.450643]
[1752372445486,0.44317843,117570.0,117560.0,0.450643]
[1752372448788,0.44317843,117570.0,117560.0,0.4505709]
[1752372449586,0.24458272,117570.0,117560.0,0.96182661]
[1752372449791,0.01937932,117570.0,117560.0,0.96182661]
[1752372449986,0.01937932,117570.0,117560.0,1.11228232]
[1752372450186,0.01937932,117570.0,117560.0,1.40416232]
[1752372450382,0.01937932,117570.0,117560.0,1.25370661]
[1752372451191,0.01937932,117570.0,117560.0,1.25377871]
[1752372452691,0.18943272,117570.0,117560.0,1.25377871]
[1752372457698,0.01937932,117570.0,117560.0,1.25377871]
[1752372464802,0.18943272,117570.0,117560.0,1.25377871]
[1752372469307,0.18943272,117570.0,117560.0,0.89297871]
[1752372469507,0.18943272,117570.0,117560.0,1.61457871]
[1752372479418,0.18943272,117570.0,117560.0,0.89297871]
[1752372479615,0.18943272,117570.0,117560.0,1.25377871]
[1752372482319,0.24466272,117570.0,117560.0,0.66098729]
[1752372482613,0.44140843,117570.0,117560.0,0.811443]
[1752372482819,0.44140843,117570.0,117560.0,1.103003]
[1752372483019,0.44140843,117570.0,117560.0,0.450643]
[1752372484115,0.50260281,117570.0,117560.0,0.450643]
[1752372484715,0.502597,117570.0,117560.0,0.450643]
[1752372485419,0.502597,117570.0,117560.0,0.43291054]
[1752372486123,0.794157,117570.0,117560.0,0.43291054]
[1752372486420,0.73296262,117570.0,117560.0,0.43291054]
[1752372490618,0.58250691,117570.0,117560.0,0.43291054]
[1752372490830,0.73296262,117570.0,117560.0,0.43291054]
[1752372492526,0.73296262,117570.0,117560.0,0.79371054]
[1752372492824,0.73296262,117570.0,117560.0,0.43291054]
[1752372493025,0.73296262,117570.0,117560.0,0.79371054]
[1752372501931,0.73296262,117570.0,117560.0,0.94416625]
[1752372503329,0.73296262,117570.0,117560.0,0.58336625]
[1752372503532,0.73296262,117570.0,117560.0,0.43291054]
[1752372507135,0.794157,117570.0,117560.0,0.43291054]
[1752372509339,0.73296262,117570.0,117560.0,0.43291054]
[1752372512439,0.80945229,117570.0,117560.0,0.43291054]
[1752372512839,0.73296262,117570.0,117560.0,0.43291054]
[1752372513541,0.80945229,117570.0,117560.0,0.43291054]
[1752372517142,0.80945229,117570.0,117560.0,0.4244168]
[1752372519341,0.8706995,117570.0,117560.0,0.4244168]
[1752372519643,0.79420983,117570.0,117560.0,0.4244168]
[1752372524443,0.79420983,117570.0,117560.0,0.4243447]
[1752372524744,0.79420983,117570.0,117560.0,0.27388899]
[1752372524946,0.79420983,117570.0,117560.0,0.4243447]
[1752372526746,0.79420983,117570.0,117560.0,0.4244168]
[1752372533349,0.79420983,117570.0,117560.0,0.27396109]
[1752372533552,0.79420983,117570.0,117560.0,0.4244168]
[1752372542257,0.79420983,117570.0,117560.0,0.27396109]
[1752372545063,0.79420983,117570.0,117560.0,0.4244168]
[1752372547866,1.15500983,117570.0,117560.0,0.4244168]
[1752372548266,1.15500983,117570.0,117560.0,0.27396109]
[1752372549369,1.17025229,117570.0,117560.0,0.27396109]
[1752372550565,1.17025229,117570.0,117560.0,0.4244168]
[1752372551069,1.15502607,117570.0,117560.0,0.4244168]
[1752372552971,1.09376262,117570.0,117560.0,0.4244168]
[1752372556776,0.73296262,117570.0,117560.0,0.4244168]
[1752372557178,0.71358911,117570.0,117560.0,0.4244168]
[1752372557476,0.73302268,117570.0,117560.0,0.4244168]
[1752372558577,1.09382268,117570.0,117560.0,0.4244168]
[1752372560777,0.73302268,117570.0,117560.0,0.4244168]
[1752372563779,0.53563697,117570.0,117560.0,0.57487251]
[1752372563971,0.24471697,117570.0,117560.0,0.57487251]
[1752372564178,0.31031357,117570.0,117560.0,0.93567251]
[1752372564379,0.48036697,117570.0,117560.0,0.93567251]
[1752372564881,0.18948697,117570.0,117560.0,0.93567251]
[1752372565183,0.01943357,117570.0,117560.0,0.93567251]
[1752372565378,0.31031357,117570.0,117560.0,0.93567251]
[1752372565881,0.01943357,117570.0,117560.0,0.93567251]
[1752372566284,0.01943357,117570.0,117560.0,1.22655251]
[1752372571187,0.22897956,117580.0,117570.0,0.2023234]
[1752372571385,0.27227891,117580.0,117570.0,0.78488911]
[1752372571686,0.05971861,117580.0,117570.0,0.78488911]
[1752372572080,0.03584861,117580.0,117570.0,0.78488911]
[1752372572487,0.20588751,117580.0,117570.0,0.78488911]
[1752372572888,0.22975751,117580.0,117570.0,0.78488911]
[1752372573185,0.20688751,117580.0,117570.0,0.78488911]
[1752372573487,0.20588751,117580.0,117570.0,0.78588911]
[1752372574079,0.05971861,117580.0,117570.0,0.78588911]
[1752372574391,0.20588751,117580.0,117570.0,0.78588911]
[1752372574590,0.22975751,117580.0,117570.0,0.78588911]
[1752372574986,0.22975751,117580.0,117570.0,0.78788911]
[1752372575290,0.20588751,117580.0,117570.0,0.78788911]
[1752372575588,0.22930751,117580.0,117570.0,0.78788911]
[1752372576688,0.05926861,117580.0,117570.0,0.78788911]
[1752372578893,0.22930751,117580.0,117570.0,0.78788911]
[1752372579282,0.20588751,117580.0,117570.0,0.78788911]
[1752372580095,0.05926861,117580.0,117570.0,0.78788911]
[1752372580995,0.22930751,117580.0,117570.0,0.78788911]
[1752372581197,0.05926861,117580.0,117570.0,0.78788911]
[1752372582399,0.03584861,117580.0,117570.0,0.93834482]
[1752372582801,0.03584861,117580.0,117570.0,0.95643945]
[1752372585801,0.03584861,117580.0,117570.0,0.59563945]
[1752372586003,0.03584861,117580.0,117570.0,0.95643945]
[1752372593206,0.03584861,117580.0,117570.0,0.59563945]
[1752372593406,0.03584861,117580.0,117570.0,0.95643945]
[1752372599113,0.03584861,117580.0,117570.0,0.59563945]
[1752372599413,0.03584861,117580.0,117570.0,1.31723945]
[1752372600520,0.01942935,117580.0,117570.0,1.31723945]
[1752372605226,0.37240155,117590.0,117580.0,0.2749489]
[1752372605526,0.39178739,117590.0,117580.0,0.57586032]
[1752372605723,0.39178739,117590.0,117580.0,0.93666032]
[1752372606118,0.34928039,117590.0,117580.0,0.93666032]
[1752372606318,0.34928039,117590.0,117580.0,0.93766032]
[1752372609427,0.28801694,117590.0,117580.0,0.93766032]
[1752372611125,0.28801694,117590.0,117580.0,0.57686032]
[1752372611326,0.28801694,117590.0,117580.0,0.93766032]
[1752372612629,0.28801694,117590.0,117580.0,0.6367489]
[1752372612830,0.28801694,117590.0,117580.0,0.93766032]
[1752372614536,0.28801694,117590.0,117580.0,0.57686032]
[1752372614728,0.28801694,117590.0,117580.0,0.93766032]
[1752372617136,0.28801694,117590.0,117580.0,0.57686032]
[1752372617328,0.28801694,117590.0,117580.0,0.93766032]
[1752372617528,0.28801694,117590.0,117580.0,0.57686032]
[1752372617728,0.28801694,117590.0,117580.0,0.93766032]
[1752372619936,0.28801694,117590.0,117580.0,0.6367489]
[1752372620234,0.28801694,117590.0,117580.0,0.93766032]
[1752372622136,0.28801694,117590.0,117580.0,0.57686032]
[1752372622337,0.28801694,117590.0,117580.0,0.93766032]
[1752372622530,0.28801694,117590.0,117580.0,0.57686032]
[1752372622727,0.28801694,117590.0,117580.0,0.93766032]
[1752372626338,0.28801694,117590.0,117580.0,0.57686032]
[1752372626640,0.28801694,117590.0,117580.0,0.93766032]
[1752372630043,0.28801694,117590.0,117580.0,0.57686032]
[1752372630343,0.28801694,117590.0,117580.0,0.93766032]
[1752372631445,0.28801694,117590.0,117580.0,0.57686032]
[1752372631742,0.28801694,117590.0,117580.0,0.93766032]
[1752372631936,0.2880282,117590.0,117580.0,0.93766032]
[1752372639350,0.34929165,117590.0,117580.0,0.93766032]
[1752372643051,0.2880282,117590.0,117580.0,0.93766032]
[1752372649555,0.2880282,117590.0,117580.0,0.6367489]
[1752372649854,0.2880282,117590.0,117580.0,0.93766032]
[1752372656961,0.43848391,117590.0,117580.0,0.93766032]
[1752372660265,0.43848391,117590.0,117580.0,0.6367489]
[1752372660467,0.43848391,117590.0,117580.0,0.93766032]
[1752372661365,0.2880282,117590.0,117580.0,0.93766032]
[1752372661761,0.2553482,117590.0,117580.0,0.93766032]
[1752372662865,0.2128419,117590.0,117580.0,0.93766032]
[1752372663168,0.4795019,117590.0,117580.0,0.93766032]
[1752372663766,0.0193971,117590.0,117580.0,0.93766032]
[1752372665867,0.0193971,117590.0,117580.0,1.51782032]
[1752372668067,0.0193971,117590.0,117580.0,1.87862032]
[1752372668467,0.1894216,117590.0,117580.0,0.57686032]
[1752372668667,0.1894216,117590.0,117580.0,0.93766032]
[1752372669771,0.1894216,117590.0,117580.0,0.6367489]
[1752372669962,0.2123016,117590.0,117580.0,0.93766032]
[1752372670358,0.1894216,117590.0,117580.0,0.93766032]
[1752372674172,0.2123016,117590.0,117580.0,0.93766032]
[1752372676073,0.1894216,117590.0,117580.0,0.93766032]
[1752372681777,0.36275731,117590.0,117580.0,0.93766032]
[1752372681973,0.39592731,117590.0,117580.0,0.6367489]
[1752372682277,0.95532302,117590.0,117580.0,0.10591]
[1752372682477,0.95532302,117590.0,117580.0,0.05012]
[1752372682866,1.43667447,117590.0,117580.0,0.001]
[1752372683479,1.45190069,117590.0,117580.0,0.001]
[1752372684173,0.2260888,117580.0,117570.0,0.1700516]
[1752372684374,1.32250718,117580.0,117570.0,0.2199216]
[1752372685479,1.32250718,117580.0,117570.0,0.2209216]
[1752372688783,0.96170718,117580.0,117570.0,0.2209216]
[1752372688979,1.32250718,117580.0,117570.0,0.2209216]
[1752372689274,1.32250718,117580.0,117570.0,0.05087]
[1752372690180,1.32250718,117580.0,117570.0,0.2209233]
[1752372691584,1.32250718,117580.0,117570.0,0.05087]
[1752372691778,1.32250718,117580.0,117570.0,0.2209234]
[1752372693180,1.32250718,117580.0,117570.0,0.05087]
[1752372694786,1.02159576,117580.0,117570.0,0.05087]
[1752372694981,1.32250718,117580.0,117570.0,0.05087]
[1752372696887,1.32250718,117580.0,117570.0,0.2209234]
[1752372699392,1.2613257,117580.0,117570.0,0.2209234]
[1752372699683,1.26111288,117580.0,117570.0,0.2209234]
[1752372702198,0.59940146,117580.0,117570.0,0.42589911]
[1752372702386,0.90031288,117580.0,117570.0,0.42589911]
[1752372703786,0.59940146,117580.0,117570.0,0.42589911]
[1752372704090,0.90031288,117580.0,117570.0,0.42589911]
[1752372705399,1.26111288,117580.0,117570.0,0.42589911]
[1752372705793,0.90031288,117580.0,117570.0,0.42589911]
[1752372706298,0.90023288,117580.0,117570.0,0.42589911]
[1752372706498,0.61035288,117580.0,117570.0,0.42589911]
[1752372706697,0.90023288,117580.0,117570.0,0.42589911]
[1752372706999,0.61035288,117580.0,117570.0,0.42589911]
[1752372707201,0.96141436,117580.0,117570.0,0.42589911]
[1752372707398,0.67153436,117580.0,117570.0,0.42589911]
[1752372707700,0.96141436,117580.0,117570.0,0.42589911]
[1752372711602,1.32221436,117580.0,117570.0,0.42589911]
[1752372713106,1.26103288,117580.0,117570.0,0.42589911]
[1752372713405,0.90023288,117580.0,117570.0,0.42589911]
[1752372713705,1.26103288,117580.0,117570.0,0.42589911]
[1752372714806,1.26103288,117580.0,117570.0,0.2754434]
[1752372716506,0.96148535,117580.0,117570.0,0.2754434]
[1752372721610,1.32228535,117580.0,117570.0,0.2754434]
[1752372722012,0.96148535,117580.0,117570.0,0.2754434]
[1752372723012,1.32228535,117580.0,117570.0,0.2754434]
[1752372724206,1.32228535,117580.0,117570.0,0.10539]
[1752372724510,1.32228535,117580.0,117570.0,0.2754434]
[1752372725511,1.26103288,117580.0,117570.0,0.2754434]
[1752372726211,1.26103288,117580.0,117570.0,0.08132]
[1752372726413,1.26103288,117580.0,117570.0,0.2513733]
[1752372726812,0.90023288,117580.0,117570.0,0.2513733]
[1752372727112,1.26103288,117580.0,117570.0,0.2513733]
[1752372728813,1.26103288,117580.0,117570.0,0.2754933]
[1752372729406,1.33752255,117580.0,117570.0,0.229546]
[1752372731115,0.97672255,117580.0,117570.0,0.229546]
[1752372731414,1.33752255,117580.0,117570.0,0.229546]
[1752372732516,1.33741563,117580.0,117570.0,0.229546]
[1752372735518,1.33741563,117580.0,117570.0,0.03145]
[1752372735719,1.33741563,117580.0,117570.0,0.1710533]
[1752372737421,1.33741563,117580.0,117570.0,0.2442733]
[1752372739521,1.32218678,117580.0,117570.0,0.2442733]
[1752372741123,0.96138678,117580.0,117570.0,0.2442733]
[1752372741325,1.32218678,117580.0,117570.0,0.2442733]
[1752372744425,0.96138678,117580.0,117570.0,0.2442733]
[1752372744625,1.32218678,117580.0,117570.0,0.2442733]
[1752372745522,1.32218678,117580.0,117570.0,0.1710533]
[1752372747424,1.32218678,117580.0,117570.0,0.001]
[1752372748330,0.96138678,117580.0,117570.0,0.001]
[1752372748528,1.32218678,117580.0,117570.0,0.001]
[1752372748929,1.32218678,117580.0,117570.0,0.1710533]
[1752372751233,0.96138678,117580.0,117570.0,0.1710533]
[1752372751427,1.32218678,117580.0,117570.0,0.1710533]
[1752372753635,1.32218678,117580.0,117570.0,0.001]
[1752372754736,1.32218678,117580.0,117570.0,0.1710533]
[1752372755328,1.32218678,117580.0,117570.0,0.001]
[1752372755829,0.96138678,117580.0,117570.0,0.001]
[1752372756034,1.32218678,117580.0,117570.0,0.001]
[1752372756436,0.96138678,117580.0,117570.0,0.001]
[1752372756631,1.32218678,117580.0,117570.0,0.001]
[1752372758336,1.26092596,117580.0,117570.0,0.001]
[1752372764841,0.90012596,117580.0,117570.0,0.001]
[1752372765041,1.26092596,117580.0,117570.0,0.001]
[1752372766042,1.26956806,117580.0,117570.0,0.001]
[1752372767345,0.90876806,117580.0,117570.0,0.001]
[1752372767538,1.26956806,117580.0,117570.0,0.001]
[1752372770844,0.90876806,117580.0,117570.0,0.001]
[1752372771144,1.26956806,117580.0,117570.0,0.001]
[1752372771645,0.96001454,117580.0,117570.0,0.001]
[1752372771943,1.26092596,117580.0,117570.0,0.001]
[1752372773745,1.26943304,117580.0,117570.0,0.001]
[1752372774149,1.26092596,117580.0,117570.0,0.001]
[1752372774545,1.26092596,117580.0,117570.0,0.1710534]
[1752372779446,1.26092596,117580.0,117570.0,0.001]
[1752372779648,0.2747833,117570.0,117560.0,0.8735555]
[1752372779854,0.50557311,117570.0,117560.0,0.5127555]
[1752372780252,0.50557311,117570.0,117560.0,0.470239]
[1752372780952,0.50557311,117570.0,117560.0,0.471239]
[1752372781355,0.50557311,117570.0,117560.0,0.4287232]
[1752372781853,0.50557311,117570.0,117560.0,0.4297232]
[1752372782161,0.50557311,117570.0,117560.0,0.10921119]
[1752372782356,1.01682882,117570.0,117560.0,0.00370119]
[1752372782649,1.03206175,117570.0,117560.0,0.00370119]
[1752372784052,1.03206175,117570.0,117560.0,0.00270119]
[1752372785354,0.95557208,117570.0,117560.0,0.00170119]
[1752372788456,0.80511637,117570.0,117560.0,0.00170119]
[1752372789558,0.86631659,117570.0,117560.0,0.00170119]
[1752372795160,0.50551659,117570.0,117560.0,0.00170119]
[1752372795364,0.86631659,117570.0,117560.0,0.00170119]
[1752372795660,0.86612962,117570.0,117560.0,0.00170119]
[1752372796861,1.01658533,117570.0,117560.0,0.00170119]
[1752372797863,0.65578533,117570.0,117560.0,0.00170119]
[1752372798064,1.01658533,117570.0,117560.0,0.00170119]
[1752372807071,0.99769494,117570.0,117560.0,0.00170119]
[1752372807270,1.01668616,117570.0,117560.0,0.00170119]
[1752372807670,0.99769494,117570.0,117560.0,0.00170119]
[1752372808568,0.63689494,117570.0,117560.0,0.00170119]
[1752372808870,0.84723923,117570.0,117560.0,0.00170119]
[1752372809070,0.78603901,117570.0,117560.0,0.00170119]
[1752372809875,0.86626478,117570.0,117560.0,0.00170119]
[1752372810075,0.84726759,117570.0,117560.0,0.00170119]
[1752372810270,0.86626478,117570.0,117560.0,0.00170119]
[1752372814278,0.50546478,117570.0,117560.0,0.00170119]
[1752372814666,0.86626478,117570.0,117560.0,0.00170119]
[1752372814875,0.86826478,117570.0,117560.0,0.00170119]
[1752372819780,0.8070362,117570.0,117560.0,0.00170119]
[1752372821784,1.03402763,117570.0,117560.0,0.00170119]
[1752372823184,0.95749191,117570.0,117560.0,0.00170119]
[1752372827091,1.03402763,117570.0,117560.0,0.00170119]
[1752372829091,0.95749191,117570.0,117560.0,0.00170119]
[1752372829891,0.2018276,117560.0,117550.0,0.39227771]
[1752372830091,0.9424565,117560.0,117550.0,0.39227771]
[1752372831792,0.9424565,117560.0,117550.0,0.241822]
[1752372832393,0.9424565,117560.0,117550.0,0.42496771]
[1752372833093,0.9424565,117560.0,117550.0,0.42504582]
[1752372836796,0.79200079,117560.0,117550.0,0.42504582]
[1752372839798,0.7307405,117560.0,117550.0,0.42504582]
[1752372845006,0.4413805,117560.0,117550.0,0.42504582]
[1752372845305,0.7307005,117560.0,117550.0,0.42504582]
[1752372856507,0.88115621,117560.0,117550.0,0.42504582]
[1752372857215,0.7307005,117560.0,117550.0,0.42504582]
[1752372858510,0.7307005,117560.0,117550.0,0.27459011]
[1752372858817,0.88115621,117560.0,117550.0,0.42504582]
[1752372859714,0.58024479,117560.0,117550.0,0.42504582]
[1752372860016,0.9424165,117560.0,117550.0,0.42504582]
[1752372860216,0.9424165,117560.0,117550.0,0.27459011]
[1752372860416,0.88115621,117560.0,117550.0,0.27459011]
[1752372861216,0.88115621,117560.0,117550.0,0.42504582]
[1752372863917,0.9424165,117560.0,117550.0,0.42504582]
[1752372864422,0.88115621,117560.0,117550.0,0.42504582]
[1752372864721,0.9424165,117560.0,117550.0,0.42504582]
[1752372867526,0.9424165,117560.0,117550.0,0.27459011]
[1752372867824,0.88115621,117560.0,117550.0,0.42504582]
[1752372869826,0.9424165,117560.0,117550.0,0.42504582]
[1752372871129,0.94235616,117560.0,117550.0,0.42504582]
[1752372872224,0.64144474,117560.0,117550.0,0.42504582]
[1752372872528,0.94235616,117560.0,117550.0,0.42504582]
[1752372875631,0.94235616,117560.0,117550.0,0.27459011]
[1752372875931,0.94235616,117560.0,117550.0,0.42504582]
[1752372876532,0.88109587,117560.0,117550.0,0.42504582]
[1752372879933,0.94234154,117560.0,117550.0,0.42504582]
[1752372902749,0.64143012,117560.0,117550.0,0.42504582]
[1752372902949,0.94234154,117560.0,117550.0,0.27459011]
[1752372903949,0.94234154,117560.0,117550.0,0.42504582]
[1752372905248,0.94234154,117560.0,117550.0,0.27459011]
[1752372905449,0.94234154,117560.0,117550.0,0.42504582]
[1752372906150,0.94234154,117560.0,117550.0,0.27459011]
[1752372906344,0.94234154,117560.0,117550.0,0.42504582]
[1752372909251,0.94234154,117560.0,117550.0,0.42496771]
[1752372911050,0.94234154,117560.0,117550.0,0.42504582]
[1752372911451,0.94234154,117560.0,117550.0,0.27459011]
[1752372913445,0.64143012,117560.0,117550.0,0.27459011]
[1752372913651,0.94234154,117560.0,117550.0,0.27459011]
[1752372917757,0.94234154,117560.0,117550.0,0.03276811]
[1752372918063,0.94234154,117560.0,117540.0,0.38695154]
[1752372918064,0.2750221,117550.0,117540.0,0.29096655]
[1752372918264,0.50566033,117550.0,117540.0,0.29096655]
[1752372919266,0.57422873,117550.0,117540.0,0.29096655]
[1752372919464,0.57422873,117550.0,117540.0,0.12087045]
[1752372920059,0.95031878,117550.0,117540.0,0.12087045]
[1752372920257,0.95031878,117550.0,117540.0,0.12187045]
[1752372920458,0.87378306,117550.0,117540.0,0.12187045]
[1752372920859,0.87378306,117550.0,117540.0,0.12287045]
[1752372922967,0.87378306,117550.0,117540.0,0.29296705]
[1752372924172,0.93499761,117550.0,117540.0,0.29296705]
[1752372925674,0.93499761,117550.0,117540.0,0.29271374]
[1752372927676,0.93499761,117550.0,117540.0,0.29171374]
[1752372929178,0.93499761,117550.0,117540.0,0.29071374]
[1752372931876,0.57419761,117550.0,117540.0,0.29071374]
[1752372932178,0.93499761,117550.0,117540.0,0.29071374]
[1752372932882,0.57419761,117550.0,117540.0,0.29071374]
[1752372933082,0.93499761,117550.0,117540.0,0.29071374]
[1752372938486,0.76560505,117550.0,117540.0,0.29071374]
[1752372938686,0.93518435,117550.0,117540.0,0.29071374]
[1752372938883,0.57438435,117550.0,117540.0,0.29071374]
[1752372939185,0.93518435,117550.0,117540.0,0.29071374]
[1752372942887,0.57438435,117550.0,117540.0,0.29071374]
[1752372943083,0.93518435,117550.0,117540.0,0.29071374]
[1752372943882,0.57438435,117550.0,117540.0,0.29071374]
[1752372944082,0.93518435,117550.0,117540.0,0.29071374]
[1752372947288,0.57438435,117550.0,117540.0,0.29071374]
[1752372947592,0.93518435,117550.0,117540.0,0.29071374]
[1752372954893,0.57438435,117550.0,117540.0,0.29071374]
[1752372955094,0.93518435,117550.0,117540.0,0.29071374]
[1752372956394,0.93518435,117550.0,117540.0,0.12061714]
[1752372957195,0.93518435,117550.0,117540.0,0.29071334]
[1752372964804,0.57438435,117550.0,117540.0,0.29071334]
[1752372964999,0.8739698,117550.0,117540.0,0.29071334]
[1752372966802,0.5131698,117550.0,117540.0,0.29071334]
[1752372967004,0.8739698,117550.0,117540.0,0.29071334]
[1752372967495,0.93523873,117550.0,117540.0,0.29071334]
[1752372969907,0.95050552,117550.0,117540.0,0.22056334]
[1752372973306,0.58970552,117550.0,117540.0,0.22056334]
[1752372973508,0.95050552,117550.0,117540.0,0.22056334]
[1752372975207,0.95050552,117550.0,117540.0,0.22056344]
[1752372975704,0.95050552,117550.0,117540.0,0.05046714]
[1752372975906,0.95050552,117550.0,117540.0,0.22056344]
[1752372976507,0.58970552,117550.0,117540.0,0.22056344]
[1752372976710,0.95050552,117550.0,117540.0,0.22056344]
[1752372977206,0.2027563,117540.0,117530.0,0.44191]
[1752372977512,0.2027563,117540.0,117530.0,0.2013607]
[1752372977513,0.94512448,117540.0,117530.0,0.2013607]
[1752372977909,0.94512448,117540.0,117530.0,0.03125]
[1752372978211,0.94512448,117540.0,117530.0,0.2013607]
[1752372978401,0.94512448,117540.0,117530.0,0.2033607]
[1752372979311,0.94512448,117540.0,117530.0,0.26153254]
[1752372980113,0.94512448,117540.0,117530.0,0.41098825]
[1752372980309,0.94512448,117540.0,117530.0,0.40998825]
[1752372980509,0.94512448,117540.0,117530.0,0.25953254]
[1752372980710,0.94512448,117540.0,117530.0,0.2512207]
[1752372982813,0.94512448,117540.0,117530.0,0.25972065]
[1752372987015,0.94512448,117540.0,117530.0,0.41017636]
[1752372988922,0.88386131,117540.0,117530.0,0.41017636]
[1752372989217,0.88386131,117540.0,117530.0,0.25972065]
[1752372989407,0.88386131,117540.0,117530.0,0.41017636]
[1752372990720,0.88386131,117540.0,117530.0,0.25972065]
[1752372991020,0.88386131,117540.0,117530.0,0.41017636]
[1752372991717,0.88386131,117540.0,117530.0,0.25972065]
[1752372991921,1.24466131,117540.0,117530.0,0.41017636]
[1752372993220,1.24466131,117540.0,117530.0,0.25972065]
[1752372993432,1.24466131,117540.0,117530.0,0.2512207]
[1752372993635,1.24466131,117540.0,117530.0,0.2013607]
[1752372999233,1.24466131,117540.0,117530.0,0.2488607]
[1752372999640,0.88386131,117540.0,117530.0,0.2488607]
[1752373000040,0.88386131,117540.0,117530.0,0.25742832]
[1752373000634,1.24466131,117540.0,117530.0,0.25742832]
[1752373000836,0.88386131,117540.0,117530.0,0.40788403]
[1752373002044,0.88386131,117540.0,117530.0,0.25742832]
[1752373002344,0.88386131,117540.0,117530.0,0.40788403]
[1752373003244,0.88386131,117540.0,117530.0,0.39931641]
[1752373003944,0.88386131,117540.0,117530.0,0.40767846]
[1752373004146,0.88386131,117540.0,117530.0,0.39931641]